[Event "1st Henriquez Urena Memorial 2022"]
[Site "Santo Domingo"]
[Date "2022.09.21"]
[Round "7.1"]
[White "Quezada Perez, Yasser"]
[Black "Araujo Sanchez, Josue"]
[Result "1-0"]
[ECO "B91"]
[WhiteElo "2580"]
[BlackElo "2281"]
[Annotator "TA"]
[PlyCount "109"]
[EventDate "2022.09.16"]
[EventType "swiss"]
[EventCountry "DOM"]
[SourceTitle "playchess.com"]
[Source "ChessBase"]
[SourceQuality "1"]
[TimeControl "5400+30"]

{[%evp 19,109,37,24,31,34,30,41,25,50,21,40,22,49,32,34,7,31,27,50,62,67,23,50,27,33,18,67,74,86,84,111,104,138,120,108,109,207,209,200,204,217,204,252,245,354,339,345,337,291,45,61,60,47,0,2,5,2,0,0,0,0,0,0,0,0,0,258,236,537,418,552,552,452,408,29972,29973,29966,12837,29997,614,972,914,695,658,700,666,1029,237,1168,577,620,581]} 1. e4 {[%emt 0:01:18]} c5 {[%emt 0:19:17]} 2. Nf3 {[%emt 0:00:06]} d6 {[%emt 0:00:08]} 3. d4 {[%emt 0:00:05]} cxd4 {[%emt 0:00:10]} 4. Nxd4 {[%emt 0:00:05]} Nf6 {[%emt 0:00:10]} 5. Nc3 {[%emt 0:00:04]} a6 {[%emt 0:00:36]} 6. g3 {[%emt 0:00:05]} g6 {[%emt 0:01:03]} 7. Bg2 {[%emt 0:00:06]} Bg7 {[%emt 0:00:16]} 8. O-O {[%emt 0:03:13]} O-O {[%emt 0:00:40]} 9. h3 {[%emt 0:01:05]} Bd7 {[%emt 0:00:28]} 10. Be3 {[%emt 0:00:30]} Nc6 11. Nde2 {[%emt 0:00:30] B91: Sicilian Najdorf: 6 g3.} b5 {[%emt 0:01:00]} 12. Nd5 {[%emt 0:06:24]} Rb8 {[%emt 0:10:16] was the old line (12...Nxd5).} 13. b3 {[%emt 0:00:30] White is slightly better.} a5 {[%emt 0:00:30]} 14. c3 {[%emt 0:09:12] [#]} Re8 $146 {[%emt 0:10:07]} ({Predecessor:} 14... a4 15. f4 Nxd5 16. exd5 Na5 17. Bd4 Bxd4+ 18. Nxd4 Qc8 19. Qe1 Bxh3 20. b4 Bxg2 21. Kxg2 {½-½ (51) Rodin,M (2362)-Eramian,G (2023) Saratov 2008}) 15. Bg5 {[%emt 0:04:03]} Be6 {[%emt 0:12:05]} 16. Qd2 {[%emt 0:00:30]} Nd7 {[%emt 0:00:30]} 17. Rad1 {[%emt 0:00:30]} Nc5 {[%emt 0:00:30]} 18. Bh6 {[%emt 0:00:30]} Bh8 {[%emt 0:00:30]} 19. f4 {[%emt 0:00:30][%cal Bf2f4,Bf4f5][%mdl 32]} b4 {[%emt 0:00:30]} 20. c4 {[%emt 0:00:30]} (20. e5 $5) 20... a4 $1 {[%emt 0:00:30]} 21. f5 {[%emt 0:00:30]} Bxd5 {[%emt 0:00:30]} 22. exd5 {[%emt 0:22:14]} Ne5 {[%emt 0:20:30]} (22... Na5 $1 $11) 23. Nd4 $14 {[%emt 0:00:40]} Qb6 {[%emt 0:05:22] And now ...axb3 would win.} 24. Kh1 {[%emt 0:00:12]} axb3 {[%emt 0:02:29]} 25. axb3 {[%emt 0:04:20]} Ra8 {[%emt 0:01:24]} 26. fxg6 {[%emt 0:00:30]} hxg6 {[%emt 0:00:30]} 27. Qf2 {[%emt 0:00:30]} Ra3 {[%emt 0:00:30]} (27... Bf6 $16) 28. Nc6 $18 {[%emt 0:00:30] Threatens to win with Nxe5.} Ncd7 {[%emt 0:00:30] ...Qxf2 is the strong threat.} 29. Be3 {[%emt 0:00:30] A strong pair of Bishops.} Qc7 {[%emt 0:00:30]} 30. Bd4 {[%emt 0:00:30]} Bf6 {[%emt 0:00:30]} 31. Bxe5 {[%emt 0:00:30]} (31. Nxb4 Qb7 32. Qe1 Rxb3 $11) 31... dxe5 {[%emt 0:00:30] [#]} (31... Nxe5 {keeps fighting.} 32. Nxe5 dxe5) 32. Nxe7+ $1 {[%emt 0:00:30][%mdl 512]} Kg7 {[%emt 0:00:30]} (32... Rxe7 $2 33. d6 Qc5 34. dxe7 Qxe7 35. Bc6 $18) 33. d6 {[%emt 0:00:30][%cal Bd5d6,Bd6e7][%mdl 32]} Qc5 {[%emt 0:00:30]} 34. Bc6 $2 {[%emt 0:00:30]} (34. Qf3 $18 {aiming for Qg4.} e4 35. Qg4 (35. Qxe4 Bxe7 36. Rd5 Qa7 $18)) 34... Rxe7 $14 {[%emt 0:00:30][%mdl 64] Remove Defender} 35. dxe7 {[%emt 0:00:30]} Qxc6+ {[%emt 0:00:30]} 36. Qf3 {[%emt 0:00:30] Chess con chili.} Qe6 {[%emt 0:00:30]} 37. Qg4 {[%emt 0:00:30] Intending Qxe6 and mate.} Qc6+ {[%emt 0:00:30]} 38. Qf3 {[%emt 0:00:30]} Qe6 {[%emt 0:00:30]} 39. Rxd7 {[%emt 0:00:30]} Bxe7 {[%emt 0:00:30]} 40. Rd2 {[%emt 0:31:19][%cal Bd7d2,Bd2h2,Bh2f2,Bf2f7][%mdl 32]} Qxh3+ {[%emt 0:12:58]} (40... e4 41. Qd1 $16) 41. Rh2 {[%emt 0:00:30]} Qe6 {[%emt 0:00:30]} 42. g4 $40 {[%emt 0:00:30][%mdl 128] White attacks.} Bf6 $2 {[%emt 0:00:30][%mdl 8192] [#]} (42... Bg5 $11 {and Black stays safe.}) 43. Rhf2 $1 $18 {[%emt 0:00:30][%cal Rf3f6]} ({Not} 43. Qh3 Qc6+ 44. Kg1 (44. Qf3 Qxf3+ 45. Rxf3 e4 $11) 44... Qb6+ 45. Kh1 (45. c5 Qxc5+ 46. Kh1 Qc6+ 47. Kg1 Qc5+ 48. Kh1 Qc6+ 49. Kg1 Qb6+ 50. Kh1 Qb7+ 51. Kg1 Qa7+ 52. Kh1 Qb7+ 53. Kg1 Qa7+ 54. Kh1 Qb7+ $11) 45... Qc6+ 46. Qg2 (46. Kg1 Qb6+ 47. Kh1 Qc6+ $14) (46. Qf3 Qxf3+ 47. Rxf3 e4 $11) 46... Qxg2+ 47. Rxg2 Rxb3 $11) 43... Ra6 $2 {[%emt 0:00:30]} (43... Bh4 {is tougher.}) 44. Qe4 {[%emt 0:00:30]} Qc6 {[%emt 0:00:30]} 45. Qxc6 {[%emt 0:00:30]} Rxc6 {[%emt 0:00:30][%mdl 4096] Endgame KRR-KRB} 46. Kg2 {[%emt 0:00:30][%cal Og4g5] Hoping for g5!} Rd6 {[%emt 0:00:30]} (46... g5 $18 47. Kf3 Be7) 47. g5 {[%emt 0:00:30]} Bxg5 {[%emt 0:00:30]} 48. Rxf7+ {[%emt 0:00:30]} Kg8 {[%emt 0:00:30]} 49. Rc7 {[%emt 0:00:30]} (49. Rf8+ $142 Kh7 50. R1f7+ Kh6 51. Rh8#) 49... e4 {[%emt 0:00:30]} 50. c5 {[%emt 0:00:30]} Re6 {[%emt 0:00:30]} 51. Kf2 {[%emt 0:00:30]} Bf4 {[%emt 0:00:30]} 52. Rb7 {[%emt 0:00:30]} Ra6 {[%emt 0:00:30]} 53. Kg2 $2 {[%emt 0:00:30]} (53. Rd1 {[%cal Rd1d8]} Bg5 54. Rxb4) 53... g5 $2 {[%emt 0:00:30]} (53... Be3 54. Re1 Bxc5 55. Rxe4 Rf6 56. Re8+ Rf8) 54. Rxb4 {[%emt 0:00:30]} (54. Rd1 $142 {[%cal Rd1d8]} Ra2+ 55. Kf1) 54... Ra2+ {[%emt 0:00:30]} 55. Rf2 {[%emt 0:00:30] Weighted Error Value: White=0.48/Black=0.59} 1-0

[Event "1st Henriquez Urena Memorial 2022"]
[Site "Santo Domingo"]
[Date "2022.09.21"]
[Round "7.2"]
[White "Michelen Rodriguez, Victor Isaac"]
[Black "Peralta, Fernando"]
[Result "1/2-1/2"]
[ECO "A40"]
[WhiteElo "2228"]
[BlackElo "2600"]
[Annotator "TA"]
[PlyCount "92"]
[EventDate "2022.09.16"]
[EventType "swiss"]
[EventCountry "DOM"]
[SourceTitle "playchess.com"]
[Source "ChessBase"]
[SourceQuality "1"]
[TimeControl "5400+30"]

{[%evp 12,92,-18,-26,0,0,0,0,0,0,0,0,0,0,0,0,0,0,0,-24,-31,-33,-15,-35,-7,-16,-15,-25,0,0,0,-20,-8,-50,-15,-8,0,-10,0,0,0,-45,0,0,0,0,0,-27,-23,-26,-23,-29,-23,-25,-29,-95,-90,-252,-256,-383,-383,-680,-376,-507,-377,-425,0,0,0,-368,0,0,0,0,8,8,15,15,88,0,15,15,15]} 1. c4 {[%emt 0:00:02]} e6 {[%emt 0:01:57]} 2. Nc3 {[%emt 0:00:07]} b6 {[%emt 0:00:50]} 3. e4 {[%emt 0:01:50]} Bb7 {[%emt 0:00:22]} 4. d4 {[%emt 0:02:16]} Bb4 {[%emt 0:00:20]} 5. Bd3 {[%emt 0:08:09]} f5 {[%emt 0:00:27]} 6. Qe2 {[%emt 0:12:34]} Nf6 {[%emt 0:05:29]} 7. Bg5 {[%emt 0:04:43]} (7. f3 {keeps more tension.} Nc6 8. Be3 fxe4 9. fxe4 e5 10. d5) 7... fxe4 {[%emt 0:01:45] A40: Unusual replies to 1 d4.} (7... O-O {feels hotter.} 8. f3 h6 9. Bh4 Qe8) 8. Bxe4 {[%emt 0:03:10]} Bxe4 {[%emt 0:00:29]} 9. Bxf6 {[%emt 0:00:04][%mdl 64] Remove Defender} Qxf6 {[%emt 0:00:14]} 10. Qxe4 {[%emt 0:00:02]} Nc6 {[%emt 0:02:41]} 11. Nf3 {[%emt 0:00:16]} Bxc3+ {[%emt 0:00:19]} 12. bxc3 {[%emt 0:00:04]} O-O {[%emt 0:00:08]} 13. O-O {[%emt 0:00:02]} Qf5 {[%emt 0:11:06]} 14. Rfe1 {[%emt 0:02:02]} Na5 {[%emt 0:05:38]} 15. Qxf5 {[%emt 0:16:15]} Rxf5 {[%emt 0:01:12]} 16. Nd2 {[%emt 0:00:03]} Raf8 {[%emt 0:09:43]} 17. f3 {[%emt 0:01:14] [#]} g5 $146 {[%emt 0:00:12]} ({Predecessor:} 17... R8f6 18. Kf2 Rh6 19. h3 Nb7 20. Ke3 Nd6 21. Kd3 Rg6 22. Re2 h5 23. g4 Rff6 {0-1 (51) Catarineu Navines,F (1965)-Serrano Pertinez,M (2086) Barcelona 2012}) 18. Rab1 {[%emt 0:07:40]} Kg7 {[%emt 0:02:09]} 19. Rb5 {[%emt 0:01:51]} h6 {[%emt 0:09:07]} 20. Rxf5 {[%emt 0:02:07]} Rxf5 $11 {[%emt 0:01:17][%mdl 4096] Endgame KRN-KRN} 21. Kf2 {[%emt 0:00:44]} Nb7 {[%emt 0:04:30]} 22. Re5 {[%emt 0:14:49]} Rf8 {[%emt 0:16:04]} 23. g4 $1 {[%emt 0:05:13]} Nd8 {[%emt 0:10:52]} 24. Re1 {[%emt 0:00:43]} Nf7 {[%emt 0:01:27]} 25. a4 {[%emt 0:04:06]} Nh8 {[%emt 0:01:09]} 26. d5 {[%emt 0:06:18]} Kf7 {[%emt 0:00:41]} 27. dxe6+ {[%emt 0:00:42]} dxe6 {[%emt 0:00:05]} 28. c5 {[%emt 0:00:58]} Ng6 {[%emt 0:01:12]} 29. cxb6 {[%emt 0:00:29]} axb6 {[%emt 0:00:12][%cal Ba7b6,Bb6b5,Bb5a4][%mdl 32]} 30. Ra1 {[%emt 0:02:11]} Rd8 {[%emt 0:01:52]} 31. Ne4 {[%emt 0:01:34]} Rd5 {[%emt 0:02:05]} 32. c4 {[%emt 0:01:54]} Ra5 {[%emt 0:00:13]} 33. c5 {[%emt 0:01:08]} (33. Nd2 $11) 33... b5 $17 {[%emt 0:00:51]} (33... bxc5 $6 34. Nd2 $11) 34. Rd1 $2 {[%emt 0:00:16]} (34. Nc3 $17 {was the only defense.}) 34... bxa4 $19 {[%emt 0:01:12]} 35. Rd7+ {[%emt 0:00:32]} (35. Ra1 {is a better defense.}) 35... Ne7 {[%emt 0:00:43]} 36. Nd6+ $2 {[%emt 0:01:34]} (36. Ke2) 36... Kf8 {[%emt 0:05:45]} 37. Rd8+ {[%emt 0:00:08]} Kg7 {[%emt 0:00:02]} 38. Rd7 {[%emt 0:00:10]} Kf8 {[%emt 0:03:38]} 39. Rd8+ {[%emt 0:00:03]} Kg7 {[%emt 0:00:03]} 40. Rd7 {[%emt 0:00:04] [#]} cxd6 $2 {[%emt 0:01:23]} ({Wrong is} 40... Kf8 $2 41. Nc4 Rxc5 42. Rd4 $19) ({Black should play} 40... a3 $1 $19 41. Rxe7+ Kf6 42. Rf7+ (42. Rxc7 $2 a2 $19) 42... Kg6) 41. cxd6 {[%emt 0:00:24][%mdl 64] Pin} a3 {[%emt 0:00:48] aiming for ...a2.} 42. Rxe7+ {[%emt 0:00:12] KR-KR} Kf8 {[%emt 0:00:45]} (42... Kf6 $5 43. Re8 $8 Ra7 $11) 43. Rxe6 {[%emt 0:00:33] Threatens to win with d7.} a2 {[%emt 0:00:21]} 44. d7 {[%emt 0:00:02]} Ra8 {[%emt 0:00:09] [#]} (44... Rd5 $11 {remains equal.} 45. Ra6 Rd2+ 46. Ke1 Rxd7) 45. Re1 {[%emt 0:00:06] White is more active.} (45. Ra6 $1 $16 {[%cal Ra6a8]} Rd8 46. Rxa2 Rxd7 47. Kg3) 45... Rd8 {[%emt 0:00:41]} 46. Ra1 {[%emt 0:00:07]} Rxd7 {[%emt 0:00:13] Black had all chances to win.  Weighted Error Value: White=0.33/Black=0.46} 1/2-1/2

[Event "1st Henriquez Urena Memorial 2022"]
[Site "Santo Domingo"]
[Date "2022.09.21"]
[Round "7.3"]
[White "Ramirez, Alejandro"]
[Black "Leon Hoyos, Manuel"]
[Result "1-0"]
[ECO "A41"]
[WhiteElo "2561"]
[BlackElo "2491"]
[Annotator "TA"]
[PlyCount "75"]
[EventDate "2022.09.16"]
[EventType "swiss"]
[EventCountry "DOM"]
[SourceTitle "playchess.com"]
[Source "ChessBase"]
[SourceQuality "1"]
[TimeControl "5400+30"]

{[%evp 10,75,45,35,64,74,69,56,58,66,63,53,75,80,107,115,103,101,114,118,136,139,170,120,130,129,147,158,250,223,258,237,308,295,405,408,435,360,372,302,300,294,422,411,388,411,399,391,383,374,585,639,613,625,1313,1250,29963,29965,29963,29965,29957,2649,29989,29990,29990,29991,29991,29992]} 1. d4 {[%emt 0:02:30]} d6 {[%emt 0:02:05]} 2. Nf3 {[%emt 0:01:04]} Bg4 {[%emt 0:02:07]} 3. e4 {[%emt 0:03:32]} Nf6 {[%emt 0:00:30]} 4. Nc3 {[%emt 0:01:59]} e6 {[%emt 0:03:18]} 5. h3 {[%emt 0:01:57]} Bh5 {[%emt 0:00:05]} 6. Bd3 {[%emt 0:04:27]} Be7 {[%emt 0:06:06] A41: 1 d4 d6: Tartakower System and Modern Defence.} 7. g4 {[%emt 0:05:40]} Bg6 {[%emt 0:00:05] [#]} 8. g5 $146 {[%emt 0:00:54]} ({Predecessor:} 8. h4 d5 9. exd5 Nxd5 10. Bxg6 hxg6 11. Ne4 Nf6 12. Nxf6+ gxf6 13. Qd3 c5 14. Qb3 {½-½ (39) Ghaem Maghami,E (2591)-Mas,H (2372) Macau 2007}) 8... Nfd7 {[%emt 0:12:07] White is slightly better.} 9. h4 {[%emt 0:06:45]} Bh5 {[%emt 0:01:56]} 10. Be2 {[%emt 0:01:07]} c6 {[%emt 0:01:49]} 11. d5 $36 {[%emt 0:03:52][%mdl 2048] White is in control.} cxd5 {[%emt 0:07:09]} 12. exd5 {[%emt 0:00:11]} e5 {[%emt 0:00:07] Prevents Nd4.} 13. Be3 {[%emt 0:00:50]} Bxf3 {[%emt 0:14:08]} 14. Bxf3 {[%emt 0:00:15]} Na6 {[%emt 0:04:15]} 15. Qd2 {[%emt 0:04:26]} Rc8 {[%emt 0:05:38]} 16. Nb5 {[%emt 0:04:52]} (16. Bxa7 $6 Nac5 $16) (16. Bg4 $18) 16... Nc7 {[%emt 0:08:03]} 17. Nxa7 {[%emt 0:04:30] White has more active pieces. The black rooks are badly placed.} Ra8 {[%emt 0:00:09]} 18. Qb4 {[%emt 0:01:34]} f5 {[%emt 0:10:05]} (18... O-O $16) 19. gxf6 {[%emt 0:10:48]} Bxf6 {[%emt 0:00:24]} 20. Qxb7 {[%emt 0:05:15]} ({Weaker is} 20. Qxd6 Be7 21. Nc6 (21. Bh5+ Kf8 $17) 21... Bxd6 $17) 20... Rb8 {[%emt 0:00:32]} 21. Qc6 {[%emt 0:00:22]} Rxb2 {[%emt 0:00:28]} 22. Bg4 {[%emt 0:01:56]} e4 {[%emt 0:05:48]} 23. Kf1 {[%emt 0:12:45]} Ke7 {[%emt 0:02:18]} 24. Qa4 {[%emt 0:02:37] [#] Strongly threatening Nc6+.} Ne5 {[%emt 0:03:34]} 25. Bd4 {[%emt 0:00:55] Dancing on a razor blade. A strong pair of Bishops.} ({Don't play} 25. Qxe4 $6 Kf8 26. Nc6 Nxc6 $18) 25... Kf8 {[%emt 0:04:25]} (25... Qe8 $142 26. Nc8+ Kd8 27. Qxe8+ Rxe8) 26. Bxb2 $18 {[%emt 0:00:44]} Nxg4 {[%emt 0:00:02]} 27. Nc6 {[%emt 0:00:35]} Qd7 {[%emt 0:01:46] White must now prevent ...Qf5.} 28. Bxf6 {[%emt 0:00:37]} Nxf6 {[%emt 0:00:04]} 29. Rb1 {[%emt 0:01:47]} Ncxd5 {[%emt 0:01:15]} (29... Kf7 {might work better.} 30. Rb7 Ra8 31. Qxa8 Nxa8) 30. Rb8+ {[%emt 0:03:34]} Ne8 {[%emt 0:00:02] [#]} 31. Qxe4 {[%emt 0:04:33]} Qxc6 {[%emt 0:00:03]} (31... Ndf6 32. Qf3) 32. Rh3 {[%emt 0:00:35] Against Ne3+. Threatening mate with Rf3+.} Qd7 {[%emt 0:04:16]} 33. Rxe8+ {[%emt 0:00:12]} Qxe8 {[%emt 0:00:02]} 34. Qxd5 {[%emt 0:00:07]} g6 {[%emt 0:00:30]} 35. Ra3 {[%emt 0:01:25]} (35. Rb3 $142 Qd7 36. Qd4 Kg8 37. Rb8+ Kf7 38. Rxh8 Qc6 39. Rxh7+ Ke6 40. Qg4+ Kd5 41. h5) 35... Kg7 {[%emt 0:02:08]} 36. Ra7+ {[%emt 0:00:07] White mates.} Kf6 {[%emt 0:00:32]} 37. Qxd6+ {[%emt 0:00:04]} Qe6 {[%emt 0:00:07]} 38. Qd4+ {[%emt 0:00:02] Weighted Error Value: White=0.14 (very precise) /Black=0.73} 1-0